Cogmind - Beta 13 @@@ ROGUE MODE // 2024.06.14 @ 17:29:53 Player: Lunace Result: Destroyed by H-88 Terminator with Heavy Machine Gun Performance ------------- Evolutions (8) 4000 Regions Visited (11) 2200 Robots Destroyed (60) 300 Value Destroyed (1655) 1655 Prototype IDs (31) 620 Alien Tech Used (0) 0 Bonus (607) 607 TOTAL SCORE: 9382 Bonus ------- High Alert Combat Kills 106 Follower Combat Kills 201 Aligned with FarCom 300 Cogmind --------- Core Integrity 0/1450 Matter 29/300 Energy 19/100 System Corruption 1% Temperature Cool (4) Movement Hovering (60) Location -2/Research Parts ------- > --- POWER (1) -------- (None) > --- PROPULSION (6) --- Gravmag Array Gravmag Array > --- UTILITY (14) ----- Enhanced Optical Array Improved Signal Interpreter Advanced Signal Interpreter Improved Hacking Suite > --- WEAPON (2) ------- (None) > --- INVENTORY (5) ---- Light Quantum Reactor Experimental Cooling System Improved Trap Scanner Advanced Trap Extractor (0/8) Linear Accelerator Peak State ------------ > --- POWER ------------ Micro Antimatter Reactor > --- PROPULSION ------- Flying Fortress v7 Q-thruster Q-thruster > --- UTILITY ---------- Medium Storage Unit Enhanced Optical Array Advanced Sensor Array Improved Signal Interpreter Improved Hacking Suite Improved Hacking Suite Improved Hacking Suite Improved Hacking Suite System Shield Advanced Component Analysis Suite Advanced Trap Extractor Advanced Trap Extractor > --- WEAPON ----------- Improved Datajack Force Lance > --- INVENTORY -------- Light Fission Core Field Propulsion Drive Experimental Cooling System Improved Trap Scanner Linear Accelerator Micro-nuke Launcher Power Maul EM Surge Trap [Rating: 127] Favorites ----------- Power Hybrid Deuterium Engine Engine Hybrid Deuterium Engine Power Core Micro Nuclear Core Reactor Antimatter Reactor Propulsion Light Treads Treads Light Treads Leg Myomer Leg Hover Unit Gravmag Array Flight Unit Flying Fortress v7 Utility Improved Hacking Suite Device Improved Sensor Array Storage Medium Storage Unit Processor Improved Signal Interpreter Hackware Improved Hacking Suite Protection Light Armor Plating Weapon Power Maul Energy Gun EM Pulse Gun Energy Cannon Guided Plasma Cannon Ballistic Cannon Light Cannon Launcher Grenade Launcher Special Weapon Field Lobotomy Kit Impact Weapon Power Maul Piercing Weapon Force Lance Special Melee Weapon Improved Datajack Build | -11 -10 -10 -10 -9 -8 -7 -6 -5 -4 -3 -2 ------- Run | Yrd Mat Min Exi Min Mat Fac Fac Fac Fac Res Res Slots Evolved 16 | . . . . . 4 2 2 2 2 2 2 Power . | . . . . . . . . . . . . Propulsion 4 | . . . . . 2 . . . . 2 . Utility 12 | . . . . . 2 2 2 2 2 . 2 Weapon . | . . . . . . . . . . . . Parts Attached 73 | 7 4 1 1 2 10 15 6 5 3 14 5 Power 9 | 1 . . . . 1 4 . . . 3 . Engine 5 | 1 . . . . . 3 . . . 1 . Core 2 | . . . . . 1 1 . . . . . Reactor 2 | . . . . . . . . . . 2 . Propulsion 14 | 2 . . . . 2 1 . . . 5 4 Treads 4 | 2 . . . . 2 . . . . . . Leg 1 | . . . . . . . . . . . 1 Wheel . | . . . . . . . . . . . . Hover 3 | . . . . . . . . . . . 3 Flight 6 | . . . . . . 1 . . . 5 . Utility 33 | 2 1 . 1 . 5 8 5 5 2 3 1 Device 16 | 1 1 . . . 2 5 1 3 1 2 . Storage 4 | 1 . . 1 . 1 . . . . 1 . Processor 5 | . . . . . 1 1 1 1 . . 1 Hackware 7 | . . . . . . 2 3 1 1 . . Protection 1 | . . . . . 1 . . . . . . Artifact . | . . . . . . . . . . . . Weapon 17 | 2 3 1 . 2 2 2 1 . 1 3 . Energy Gun 2 | 2 . . . . . . . . . . . Energy Cannon 2 | . . . . 1 1 . . . . . . Ballistic Gun . | . . . . . . . . . . . . Ballistic Cannon 3 | . 2 . . 1 . . . . . . . Launcher 5 | . 1 1 . . . . . . . 3 . Special Weapon 1 | . . . . . 1 . . . . . . Impact Weapon 2 | . . . . . . 2 . . . . . Slashing Weapon . | . . . . . . . . . . . . Piercing Weapon 1 | . . . . . . . . . 1 . . Special Melee Weapon 1 | . . . . . . . 1 . . . . Unidentified Prototypes . | . . . . . . . . . . . . Parts Lost 21 | . . . . 1 1 2 . . . 11 6 Power 1 | . . . . . . 1 . . . . . Propulsion 7 | . . . . . . . . . . 4 3 Utility 7 | . . . . . 1 . . . . 3 3 Weapon 6 | . . . . 1 . 1 . . . 4 . Highest Loss Streak 11 | . . . . 1 1 2 . . . 11 2 To Critical Strikes . | . . . . . . . . . . . . Average Slot Usage (%) 79 | . 100 100 100 87 90 70 76 82 79 73 33 Engine 6 | . 14 14 14 14 6 4 6 5 5 . 2 Treads 10 | . 28 28 28 28 33 . . . . . . Flight 3 | . . . . . . 7 6 5 5 8 2 Device 12 | . 14 14 14 4 10 16 10 14 16 16 3 Storage 7 | . 14 14 14 14 9 7 6 5 5 3 . Processor 7 | . . . . . 7 12 10 11 10 9 10 Hackware 11 | . . . . . . 7 21 25 26 21 11 Energy Cannon 2 | . . . . 7 8 2 . . . . . Ballistic Cannon 3 | . 15 14 14 6 5 . . . . . . Launcher 2 | . 3 14 14 12 . . . . . . . Impact Weapon 2 | . . . . . . 6 6 5 4 . . Special Melee Weapon 1 | . . . . . . . 4 5 5 3 . Naked Turns . | . . . . . . . . . . . . Heaviest Build 45 | 15 17 17 17 23 37 36 26 29 36 45 6 Greatest Support 82 | 40 40 40 40 40 82 50 50 50 50 66 60 Greatest Overweight (x) 2 | . . . . . . . . . . 2 1 Average Overweight (x) . | . . . . . . . . . . . . Largest Inventory Capacity 10 | 8 8 8 8 8 10 10 10 10 10 10 5 Average Capacity 9 | 7 8 8 8 8 9 10 10 10 10 9 5 Most Carried 10 | 1 4 4 8 8 10 10 10 10 9 10 5 Average Carried 6 | . 3 4 6 7 8 4 9 8 7 7 4 Final Capacity 10 | 8 8 8 8 8 10 10 10 10 10 5 5 Final Carried 10 | 1 4 4 8 8 10 9 10 9 9 5 5 Class Distribution -------------------- 36% | Mutant 35% | Hacker-Scout 14% | Scout 13% | Hacker-Mutant Dominant Class ---------------- Mutant | -10/Materials Mutant | -10/Mines Mutant | -10/Exiles Mutant | -9/Mines Mutant | -8/Materials Scout | -7/Factory Hacker-Scout | -6/Factory Hacker-Scout | -5/Factory Hacker-Scout | -4/Factory Hacker-Scout | -3/Research Hacker-Mutant | -2/Research Resources | -11 -10 -10 -10 -9 -8 -7 -6 -5 -4 -3 -2 ----------- Run | Yrd Mat Min Exi Min Mat Fac Fac Fac Fac Res Res Matter Collected 1007 | 270 30 88 . 47 99 120 79 20 . 245 9 Remotely . | . . . . . . . . . . . . Salvage Created 2027 | 103 64 27 . 20 392 691 250 20 . 460 . Parts 90 | 6 11 4 . 4 27 15 4 . . 19 . Haulers Intercepted 6 | . 1 . . . . 3 2 . . . . Recyclers Shooed 4 | 1 . . . . . 2 . . . 1 . Parts Field Recycled . | . . . . . . . . . . . . Retrieved Matter . | . . . . . . . . . . . . Parts Self-Destructed . | . . . . . . . . . . . . Prevented . | . . . . . . . . . . . . Kills | -11 -10 -10 -10 -9 -8 -7 -6 -5 -4 -3 -2 ------- Run | Yrd Mat Min Exi Min Mat Fac Fac Fac Fac Res Res Combat Hostiles Destroyed 33 | . 3 3 . 4 10 9 . . . 4 . Melee 3 | . . . . . . 1 . . . 2 . Cannons 14 | . . . . 1 10 3 . . . . . AOE 12 | . 3 3 . 3 . 2 . . . 1 . Classes Destroyed 15 | 1 3 . . 1 4 4 1 . . 1 . Worker 2 | . . . . . . . 1 . . 1 . Builder 1 | . . . . . . 1 . . . . . Tunneler 4 | 4 . . . . . . . . . . . Hauler 6 | . 1 . . . . 3 2 . . . . Recycler 4 | . . . . . . 2 . . . 2 . Operator 2 | . . . . . 1 . . 1 . . . Watcher 8 | . 1 . . . 2 2 2 . . 1 . Swarmer 20 | . 3 3 . 3 6 4 . . . 1 . Grunt 4 | . . . . . 1 3 . . . . . Duelist 2 | . . . . . . 1 . . . 1 . Sentry 2 | . . . . . 2 . . . . . . Demolisher 1 | . . . . 1 . . . . . . . Hunter 1 | . . . . . 1 . . . . . . Programmer 2 | . . . . . . 1 . . . 1 . Behemoth 1 | . . . . . . . . . . 1 . Best Kill Streak 4 | 2 3 3 . 3 4 4 1 1 . 3 . Combat Bots Only 4 | . 3 3 . 3 4 3 . . . 1 . Max Kills in Single Turn 3 | 1 3 3 . 3 1 3 1 1 . 1 . Gunslinging . | . . . . . . . . . . . . Exploded 3 | . 3 3 . 3 . 2 . . . 1 . Melee 1 | . . . . . . 1 . . . 1 . Uniques/NPCs Destroyed . | . . . . . . . . . . . . Combat | -11 -10 -10 -10 -9 -8 -7 -6 -5 -4 -3 -2 -------- Run | Yrd Mat Min Exi Min Mat Fac Fac Fac Fac Res Res Hostile Shots Fired 369 | . 14 3 . 2 18 34 16 . 1 96 185 Missed 163 | . 2 2 . . 2 17 5 . 1 44 90 Damage Taken 5232 | . 104 37 . 161 293 516 357 . . 1599 2165 Core 2511 | . 9 . . 83 93 121 46 . . 689 1470 Absorbed by Shields 21 | . . . . . 7 14 . . . . . Regen/Repaired (Parts) 66 | . . . . . . . . . . 66 . Core Remaining (%) 83 | 100 . . . 63 83 82 94 100 100 47 . Volleys Fired 89 | 15 7 1 . 4 40 10 . . . 12 . Largest 2 | 2 2 1 . 1 1 1 . . . 2 . Hottest 120 | 90 70 30 . 35 120 120 . . . 104 . Shots Fired 100 | 18 13 1 . 4 40 10 . . . 14 . Gun 18 | 18 . . . . . . . . . . . Cannon 60 | . 12 . . 3 35 10 . . . . . Launcher 17 | . 1 1 . 1 . . . . . 14 . Special 5 | . . . . . 5 . . . . . . Kinetic 16 | . 12 . . 3 1 . . . . . . Thermal 59 | 15 . . . . 34 10 . . . . . Explosive 17 | . 1 1 . 1 . . . . . 14 . Electromagnetic 3 | 3 . . . . . . . . . . . Robot Hit Streak 13 | 6 5 . . 2 12 13 . . . 5 . Robot Miss Streak 3 | 2 2 1 . 3 . . . . . 2 . Penetration Max . | . . . . . . . . . . . . Secondary Targets . | . . . . . . . . . . . . Shots Hit Robots 72 | 10 9 . . 2 10 15 6 2 . 18 . Core Hits 52 | 4 5 2 . 3 12 8 1 . . 16 1 Critical Kills 1 | . . . . . . 1 . . . . . Critical Parts Destroyed 6 | . . . . . . 2 4 . . . . Critical Strikes 9 | . . . . . . 3 4 . . 2 . Smash 7 | . . . . . . 3 4 . . . . Impale 2 | . . . . . . . . . . 2 . Melee Attacks 86 | . . . . . . 30 25 9 11 11 . Impact 74 | . . . . . . 30 25 8 11 . . Slashing . | . . . . . . . . . . . . Piercing 11 | . . . . . . . . . . 11 . Sneak Attacks 14 | . . . . . . 6 4 2 . 2 . Combat Hostiles 2 | . . . . . . 1 . 1 . . . Follow-up Attacks . | . . . . . . . . . . . . Damage Inflicted 6093 | 129 254 120 . 218 990 1869 532 112 . 1854 15 Guns 129 | 129 . . . . . . . . . . . Cannons 1544 | . 156 . . 55 990 343 . . . . . Explosions 2263 | . 98 120 . 157 . 498 . . . 1390 . Melee 2136 | . . . . . . 1028 532 112 . 464 . Ramming 21 | . . . . 6 . . . . . . 15 Kinetic 211 | . 156 . . 55 . . . . . . . Thermal 1945 | 114 . . . . 990 841 . . . . . Explosive 1765 | . 98 120 . 157 . . . . . 1390 . Electromagnetic 15 | 15 . . . . . . . . . . . Impact 1672 | . . . . . . 1028 532 112 . . . Slashing . | . . . . . . . . . . . . Piercing 464 | . . . . . . . . . . 464 . Highest Corruption 4 | . . . . . . 1 . . . 4 1 Average Corruption 1 | . . . . . . 1 . . . 2 1 Corruption Purged . | . . . . . . . . . . . . Corruption Blocked . | . . . . . . . . . . . . Effects 5 | . . . . . . 4 . . . 1 . Message Errors 2 | . . . . . . 2 . . . . . Matter Fused 1 | . . . . . . 1 . . . . . Parts Fused 1 | . . . . . . . . . . 1 . Alerts 1 | . . . . . . 1 . . . . . Overload Shots . | . . . . . . . . . . . . Overflow Damage 1220 | . . 16 . 15 76 554 349 97 . 113 . Projectiles 78 | . . . . . 76 2 . . . . . Explosions 78 | . . 16 . 15 . 34 . . . 13 . Melee 1064 | . . . . . . 518 349 97 . 100 . Knockbacks 7 | . 3 . . . . 3 . 1 . . . Impact 4 | . . . . . . 3 . 1 . . . Kinetic 3 | . 3 . . . . . . . . . . Secondary . | . . . . . . . . . . . . Self-Inflicted Damage 83 | . . 30 . 21 . . . . . 26 6 Shots 4 | . . 2 . 1 . . . . . 1 . Rammed 8 | . . . . 3 . . . . . . 5 Targets Rammed 8 | . . . . 3 . . . . . . 5 Kicked . | . . . . . . . . . . . . Crushed . | . . . . . . . . . . . . Highest Temperature 397 | 90 36 7 . . 397 304 . . . 339 . Average Temperature 95 | 33 16 4 . . 116 93 . . . 199 . Received Heat Transfer 910 | . . . . . 70 . 48 . . 468 324 Effects 3 | . . . . . 3 . . . . . . Shutdowns 1 | . . . . . 1 . . . . . . Interference 2 | . . . . . 2 . . . . . . Siege Activations . | . . . . . . . . . . . . Robots Corrupted . | . . . . . . . . . . . . Combat Hostiles . | . . . . . . . . . . . . Parts Fried 16 | . . . . . . 8 6 1 . 1 . Impact Corruptions 30 | . . . . . . 17 9 4 . . . Robots Melted . | . . . . . . . . . . . . Combat Hostiles . | . . . . . . . . . . . . Parts Melted 8 | 1 . . . . 7 . . . . . . Heat Transferred 3693 | 333 . . . . 2240 1120 . . . . . Parts Sabotaged . | . . . . . . . . . . . . Parts Stolen . | . . . . . . . . . . . . Parts Stripped . | . . . . . . . . . . . . Power Chain Reactions . | . . . . . . . . . . . . Alert | -11 -10 -10 -10 -9 -8 -7 -6 -5 -4 -3 -2 ------- Run | Yrd Mat Min Exi Min Mat Fac Fac Fac Fac Res Res Peak Influence 770 | 20 118 144 . 79 438 770 380 119 92 341 535 Initial 343 | . 13 45 . . 8 182 343 40 . 8 127 Average 208 | 8 88 141 . 55 243 544 199 61 31 112 265 Maximum Alert Level 3 | . . . . . 2 3 1 . . 1 2 Low Security (%) 62 | 100 100 100 . 100 25 11 58 100 100 76 36 Level 1 20 | . . . . . 65 7 41 . . 23 42 Level 2 13 | . . . . . 8 60 . . . . 21 Level 3 3 | . . . . . . 19 . . . . . Level 4 . | . . . . . . . . . . . . Level 5 . | . . . . . . . . . . . . High Security . | . . . . . . . . . . . . Max Security . | . . . . . . . . . . . . Squads Dispatched 24 | . . . . . 3 10 3 3 3 . 2 Investigation 14 | . . . . . 2 5 3 1 2 . 1 Extermination 1 | . . . . . . 1 . . . . . Reinforcement 6 | . . . . . . 2 . 2 1 . 1 Assault 3 | . . . . . 1 2 . . . . . Garrison . | . . . . . . . . . . . . Intercept . | . . . . . . . . . . . . Searches Triggered . | . . . . . . . . . . . . Construction Impeded . | . . . . . . . . . . . . Haulers Reinforced 1 | . . . . . . 1 . . . . . Active Scanning Responses . | . . . . . . . . . . . . Cargo Convoy Interrupts . | . . . . . . . . . . . . Stealth | -11 -10 -10 -10 -9 -8 -7 -6 -5 -4 -3 -2 --------- Run | Yrd Mat Min Exi Min Mat Fac Fac Fac Fac Res Res Distress Signals 4 | . . . . . 1 . 1 . . 1 1 Communications Jammed . | . . . . . . . . . . . . Distress Signals . | . . . . . . . . . . . . Times Spotted 143 | . 4 3 . 2 22 22 20 4 7 23 36 Peak Tracking Total 16 | . 3 3 . 2 5 5 11 3 3 13 16 Tactical Retreats 19 | . . . . . . 6 2 2 1 2 6 Traps | -11 -10 -10 -10 -9 -8 -7 -6 -5 -4 -3 -2 ------- Run | Yrd Mat Min Exi Min Mat Fac Fac Fac Fac Res Res Traps Triggered 6 | . . . . . 1 2 1 . . 2 . Indirectly . | . . . . . . . . . . . . Trap Hack Attempts 161 | . . . . . . . 84 20 21 36 . Triggered . | . . . . . . . . . . . . Disarmed 2 | . . . . . . . . 2 . . . Reprogrammed 34 | . . . . . . . 14 6 7 7 . Reused 9 | . . . . . . . . 1 1 7 . Traps Extracted 19 | . . . . . . . . 6 7 6 . Installed 18 | . . . . . . . . 2 1 15 . Triggered 9 | . . . . . . . . 1 1 7 . Most Traps Carried 13 | . . . . . . . . 5 10 13 . Machines | -11 -10 -10 -10 -9 -8 -7 -6 -5 -4 -3 -2 ---------- Run | Yrd Mat Min Exi Min Mat Fac Fac Fac Fac Res Res Machines Disabled 9 | . 1 1 . . 2 4 1 . . . . Max in Single Turn 4 | . 1 1 . . 1 4 1 . . . . Garrison Access 5 | . . . . . 1 1 1 . . 1 1 Machines Repaired . | . . . . . . . . . . . . Machines Dismantled . | . . . . . . . . . . . . Machines Sabotaged . | . . . . . . . . . . . . Overloaded Fab Kills . | . . . . . . . . . . . . Hacking | -11 -10 -10 -10 -9 -8 -7 -6 -5 -4 -3 -2 --------- Run | Yrd Mat Min Exi Min Mat Fac Fac Fac Fac Res Res Machines Accessed 56 | . 1 . 2 1 3 12 13 4 7 7 6 Terminals 35 | . 1 . . . 3 8 6 2 7 4 4 Fabricators 6 | . . . . . . 1 3 1 . . 1 Repair Stations 1 | . . . . . . . . . . 1 . Recycling Units 4 | . . . . . . 1 2 . . 1 . Scanalyzers 2 | . . . . . . . 1 1 . . . Garrison Access 5 | . . . . . . 2 1 . . 1 1 Total Hacks 168 | . 2 . 2 1 18 31 39 10 28 21 16 Successful 93 | . . . 2 1 7 14 27 5 15 15 7 Failed 75 | . 2 . . . 11 17 12 5 13 6 9 Catastrophic 13 | . . . . . 2 6 4 . 1 . . Database Lockouts . | . . . . . . . . . . . . Manual 100 | . 2 . 1 . 18 10 17 6 23 15 8 Terminals 130 | . 2 . . . 18 26 22 6 28 16 12 Fabricators 16 | . . . . . . 2 10 2 . . 2 Repair Stations 2 | . . . . . . . . . . 2 . Recycling Units 4 | . . . . . . 1 2 . . 1 . Scanalyzers 5 | . . . . . . . 3 2 . . . Garrison Access 8 | . . . . . . 2 2 . . 2 2 Terminal Hacks 34 | . . . 2 1 3 5 8 . 6 6 3 Record 1 | . . . 1 . . . . . . . . Part Schematic 9 | . . . . . 2 1 3 . 3 . . Robot Analysis 1 | . . . . . . 1 . . . . . Prototype ID Bank 1 | . . . . . . . . . . . 1 Open Door 1 | . . . . 1 . . . . . . . Level Access Points 4 | . . . . . 1 1 . . 1 1 . Branch Access Points 4 | . . . . . . . 1 . 1 1 1 Machine Index 1 | . . . . . . . 1 . . . . Terminal Index 1 | . . . . . . . . . . 1 . Fabricator Index 2 | . . . . . . . 1 . . 1 . Alert Level 2 | . . . . . . . . . . 1 1 Unreport Threat 2 | . . . . . . . 2 . . . . Locate Traps 4 | . . . . . . 2 . . 1 1 . Derelict Proto ID Bank 1 | . . . 1 . . . . . . . . Fabricator Hacks 10 | . . . . . . 2 6 2 . . . Load Schematic 5 | . . . . . . 1 3 1 . . . Build 5 | . . . . . . 1 3 1 . . . Repair Station Hacks 2 | . . . . . . . . . . 2 . Scan Component 1 | . . . . . . . . . . 1 . Repair 1 | . . . . . . . . . . 1 . Recycling Unit Hacks 3 | . . . . . . 1 1 . . 1 . Retrieve Components 3 | . . . . . . 1 1 . . 1 . Scanalyzer 4 | . . . . . . . 3 1 . . . Insert Component 2 | . . . . . . . 1 1 . . . Analyze 2 | . . . . . . . 2 . . . . Garrison Access Hacks 3 | . . . . . . . 1 . . 1 1 Seal Access 3 | . . . . . . . 1 . . 1 1 Unauthorized Hacks 37 | . . . . . 4 6 8 2 9 5 3 Terminals 36 | . . . . . 4 6 8 2 9 4 3 Assimilate 6 | . . . . . . 1 2 1 2 . . Botnet 26 | . . . . . 3 4 6 1 6 3 3 Operators 4 | . . . . . 1 1 . . 1 1 . Fabricators . | . . . . . . . . . . . . Repair Stations . | . . . . . . . . . . . . Recycling Units . | . . . . . . . . . . . . Scanalyzers . | . . . . . . . . . . . . Garrison Access 1 | . . . . . . . . . . 1 . Watchers 1 | . . . . . . . . . . 1 . Data Cores Recovered . | . . . . . . . . . . . . Used . | . . . . . . . . . . . . Hacking Detections 48 | . 1 . . . 3 12 11 3 7 6 5 Full Trace Events 10 | . . . . . . 3 3 1 2 . 1 Feedback Events . | . . . . . . . . . . . . Feedback Blocked . | . . . . . . . . . . . . Robot Schematics Acquired . | . . . . . . . . . . . . Robots Built . | . . . . . . . . . . . . Authchips . | . . . . . . . . . . . . Time . | . . . . . . . . . . . . Total Robot Build Rating . | . . . . . . . . . . . . Part Schematics Acquired 10 | . . . . . 2 1 4 . 3 . . Parts Built 6 | . . . . . . 1 4 1 . . . Authchips . | . . . . . . . . . . . . Time 315 | . . . . . . 73 147 95 . . . Total Part Build Rating 30 | . . . . . . 3 22 5 . . . Parts Repaired 1 | . . . . . . . . . . 1 . Time 20 | . . . . . . . . . . 20 . Parts Recycled . | . . . . . . . . . . . . Recycled Matter . | . . . . . . . . . . . . Retrieved Matter . | . . . . . . . . . . . . Retrieved Components 10 | . . . . . . 1 1 . . 8 . Parts Scanalyzed 1 | . . . . . . . 1 . . . . Part Schematics Acquired 1 | . . . . . . . 1 . . . . Parts Damaged 1 | . . . . . . . 1 . . . . Bothacking | -11 -10 -10 -10 -9 -8 -7 -6 -5 -4 -3 -2 ------------ Run | Yrd Mat Min Exi Min Mat Fac Fac Fac Fac Res Res Used RIF Installer . | . . . . . . . . . . . . Robots Hacked . | . . . . . . . . . . . . Non-combat . | . . . . . . . . . . . . Combat . | . . . . . . . . . . . . Robot Hacks Applied . | . . . . . . . . . . . . Relay Couplers Released 2 | . . . . . 1 1 . . . . . Machine Destruction 2 | . . . . . 1 1 . . . . . Fabnet Peak Effective % . | . . . . . . . . . . . . Robots Rewired 1 | . . . . . . . . 1 . . . Allies Hacked . | . . . . . . . . . . . . Hacks Repelled . | . . . . . . . . . . . . Allies | -11 -10 -10 -10 -9 -8 -7 -6 -5 -4 -3 -2 -------- Run | Yrd Mat Min Exi Min Mat Fac Fac Fac Fac Res Res Total Allies 14 | . . . . 4 5 . 2 1 2 . . Largest Group 3 | . . . . 3 3 2 2 1 2 2 . Highest-Rated Group 77 | . . . . 63 77 56 36 29 52 52 . Highest-Rated Ally 31 | . . . . 31 31 29 26 29 26 26 . Total Orders . | . . . . . . . . . . . . Ally Attacks 49 | . . . . 19 25 2 . 3 . . . Total Damage 1016 | . . . . 189 770 20 . 37 . . . Kills 9 | . . . . 1 7 1 . . . . . Allies Corrupted 2 | . . . . . 1 . . . . 1 . Allies Melted . | . . . . . . . . . . . . Field Lobotomies 5 | . . . . . 5 . . . . . . Intel | -11 -10 -10 -10 -9 -8 -7 -6 -5 -4 -3 -2 ------- Run | Yrd Mat Min Exi Min Mat Fac Fac Fac Fac Res Res Robot Analysis Total 1 | . . . . . . 1 . . . . . Derelict Logs Recovered 3 | . . 2 . 1 . . . . . . . Drone Launches . | . . . . . . . . . . . . Drone Recoveries . | . . . . . . . . . . . . Exploration | -11 -10 -10 -10 -9 -8 -7 -6 -5 -4 -3 -2 ------------- Run | Yrd Mat Min Exi Min Mat Fac Fac Fac Fac Res Res Turns Passed 5675 | 136 252 95 428 592 566 945 981 411 484 466 319 Spaces Moved 6363 | 57 124 58 265 359 247 1436 1426 543 769 586 493 Core 217 | 3 . . . . . . . . . 29 185 Treads 1107 | 54 124 58 265 359 247 . . . . . . Legs 44 | . . . . . . . . . . . 44 Wheels . | . . . . . . . . . . . . Hover 44 | . . . . . . . . . . . 44 Flight 4951 | . . . . . . 1436 1426 543 769 557 220 Fastest Speed 35 | 50 160 160 160 160 156 50 50 50 50 35 40 Average Speed 68 | 154 160 160 160 160 156 50 50 50 50 44 55 Slowest Speed 200 | 160 160 160 160 160 160 50 50 50 50 200 120 Overloaded Moves . | . . . . . . . . . . . . Propulsion Burnouts . | . . . . . . . . . . . . Robots Hopped 36 | . . . . . . 16 7 3 6 . 4 Cave-ins Triggered . | . . . . . . . . . . . . Exploration Rate (%) 33 | 5 33 13 68 86 32 40 37 14 24 23 21 Regions Visited 11 Branch Regions 3 Pre-discovered Areas 3 | . . 2 1 . . . . . . . . Known Exits Taken 6 | . . . . . 1 1 1 1 1 1 . Unknown Exits Taken 5 | 1 1 1 1 1 . . . . . . . Scrap Searched 1 | . . . . 1 . . . . . . . Spaces Dug 40 | . . . . . . 6 16 6 10 2 . Terrain Destroyed 174 | . 5 19 . 9 3 13 16 6 10 93 . Melee 40 | . . . . . . 6 16 6 10 2 . Projectile 3 | . . . . . 3 . . . . . . AOE 131 | . 5 19 . 9 . 7 . . . 91 . Terrain Rammed . | . . . . . . . . . . . . Walls Destroyed . | . . . . . . . . . . . . Machines Disabled . | . . . . . . . . . . . . Actions | -11 -10 -10 -10 -9 -8 -7 -6 -5 -4 -3 -2 --------- Run | Yrd Mat Min Exi Min Mat Fac Fac Fac Fac Res Res Total 7340 | 84 165 59 271 372 379 1579 1639 663 840 755 534 Wait 481 | 5 24 . . 1 74 79 83 81 37 65 32 Move 6282 | 56 123 57 264 358 246 1403 1411 536 757 585 486 Hop 34 | . . . . . . 16 7 3 5 . 3 Pick Up 44 | 1 2 . 3 1 5 12 12 3 2 2 1 Fast Attach 36 | 7 3 . . . 6 3 3 . 1 8 5 Attach 19 | . . . . 2 1 7 1 3 2 3 . Detach 8 | . 2 . . 1 . . 1 . 1 3 . Swap 18 | . 1 1 1 . 3 5 2 2 . 3 . Drop 56 | . 3 . 3 2 4 14 10 4 2 12 2 Fire 89 | 15 7 1 . 4 40 10 . . . 12 . Melee 86 | . . . . . . 30 25 9 11 11 . Ram 5 | . . . . . . . . . . . 5 Kick . | . . . . . . . . . . . . Crush 3 | . . . . 3 . . . . . . . Escape Stasis . | . . . . . . . . . . . . Rewire . | . . . . . . . . . . . . Trap 179 | . . . . . . . 84 22 22 51 . Miscellaneous . | . . . . . . . . . . . . Route ------- -11/Scrapyard -10/Materials -10/Mines -10/Exiles -9/Mines -8/Materials (discovered 3 exits: *Fac x3) -7/Factory (discovered 6 exits: *Fac x4 / *Low x2) -6/Factory (discovered 3 exits: *Fac / *Low x2) -5/Factory -4/Factory (discovered 8 exits: *Res x4 / Upp x2 / Ext x2) -3/Research (discovered 6 exits: *Res x3 / Arm / Tes x2) -2/Research (discovered 2 exits: Qua x2) History --------- Turn | Location | Event 18 | -11/Scrapyard | Discovered new exit (range 15) 137 | -11/Scrapyard | Entered Materials 298 | -10/Materials | Discovered new exit (range 16) 310 | -10/Materials | Build established: Mutant 389 | -10/Materials | Entered Mines 412 | -10/Mines | Learned location of Storage (-9) 450 | -10/Mines | Met a Derelict bent on vengeance 462 | -10/Mines | Learned location of Zion (-6) 478 | -10/Mines | Deemed a non-threat by the Exiles lab entrance 478 | -10/Mines | Discovered new exit (range 5) 484 | -10/Mines | Entered Exiles 524 | -10/Exiles | Met 8R-AWN 550 | -10/Exiles | Met EX-HEX 596 | -10/Exiles | Met EX-BIN 614 | -10/Exiles | Aligned with FarCom system 616 | -10/Exiles | Given EX-Vault access code 652 | -10/Exiles | Opened EX-Vault 662 | -10/Exiles | Found Flying Fortress v7 673 | -10/Exiles | Found Gui. Plasma Cannon 680 | -10/Exiles | Found Field Lobotomy Kit 712 | -10/Exiles | Warned to stay clear of 0b10 Research branches 813 | -10/Exiles | Met EX-DEC 889 | -10/Exiles | Discovered new exit (range 15) 912 | -10/Exiles | Stole three prototypes: Flying Fortress v7, Gui. Plasma Cannon, Field Lobotomy Kit 912 | -10/Exiles | Entered Mines 1316 | -9/Mines | Learned Materials terminal intel 1371 | -9/Mines | Assisted by bots powering up and referring to "LRC-V3" 1444 | -9/Mines | Assembled infested the area 1444 | -9/Mines | Met a Derelict who couldn't figure out how to use a Trap Extractor 1449 | -9/Mines | Assisted by a Guerilla fighting off Assembled 1453 | -9/Mines | Discovered new exit (range 7) 1456 | -9/Mines | Received a Mining Laser from a helpful Derelict 1491 | -9/Mines | Lost 3 allies 1504 | -9/Mines | Entered Materials 1504 | -8/Materials | Accompanied by 2 allies 1504 | -8/Materials | Evolved 4 slots: Propulsion x2, Utility x2 1505 | -8/Materials | Loaded intel: 12 terminal locations 1631 | -8/Materials | Identified exit to Factory 1860 | -8/Materials | Assimilated H-55 Commando with FLK Orb 1863 | -8/Materials | Assimilated G-47 Trooper with FLK Orb 1951 | -8/Materials | Assimilated B-36 Bruiser with FLK Orb 1954 | -8/Materials | Assimilated G-50 Soldier with FLK Orb 1957 | -8/Materials | Assimilated I-25 Savior with FLK Orb 2070 | -8/Materials | Entered Factory 2070 | -7/Factory | Accompanied by 2 allies 2070 | -7/Factory | Evolved 2 slots: Utility x2 2072 | -7/Factory | FarCom data flow suspended 2287 | -7/Factory | Discovered new exit (range 12) 2293 | -7/Factory | Identified exit to Lower Caves 2312 | -7/Factory | Discovered exit to Lower Caves (range 13) 2376 | -7/Factory | Build established: Scout 2378 | -7/Factory | Identified exit to Factory 2771 | -7/Factory | Fabricated Hacking Suite? 2870 | -7/Factory | First assault squad dispatched 3015 | -7/Factory | Entered another Factory area 3015 | -6/Factory | Evolved 2 slots: Utility x2 3134 | -6/Factory | Identified exit to Lower Caves 3445 | -6/Factory | Fabricated Imp. Hacking Suite (x1) 3647 | -6/Factory | Build established: Hacker-Scout 3708 | -6/Factory | Fabricated Adv. Trap Extractor (x2) 3830 | -6/Factory | Discovered new exit (range 15) 3910 | -6/Factory | Fabricated Imp. Hacking Suite? 3996 | -6/Factory | Identified exit to Factory 3996 | -6/Factory | Entered another Factory area 3996 | -5/Factory | Evolved 2 slots: Utility x2 4116 | -5/Factory | Fabricated Imp. Hacking Suite (x1) 4394 | -5/Factory | Discovered new exit (range 18) 4406 | -5/Factory | Identified exit to Factory 4407 | -5/Factory | Entered another Factory area 4407 | -4/Factory | Evolved 2 slots: Utility x2 4459 | -4/Factory | Spotted B-86 Titan 4599 | -4/Factory | Identified exit to Research 4599 | -4/Factory | Identified exit to Upper Caves 4599 | -4/Factory | Identified exit to Extension 4891 | -4/Factory | Entered Research 4891 | -3/Research | Accompanied by 2 allies 4891 | -3/Research | Evolved 2 slots: Propulsion x2 5076 | -3/Research | Identified exit to Armory 5076 | -3/Research | Identified exit to Testing 5076 | -3/Research | Identified exit to Research 5139 | -3/Research | Repaired Micro-nuke Launcher 5288 | -3/Research | Spotted B-86 Titan 5290 | -3/Research | Found Fusion Bomb Launcher 5294 | -3/Research | Found Fusion Bomb Launcher 5313 | -3/Research | Destroyed B-86 Titan 5325 | -3/Research | Core integrity fell below 50% 5348 | -3/Research | Lost 11 parts (4n3u4w) 5357 | -3/Research | Entered another Research area 5357 | -2/Research | Evolved 2 slots: Utility x2 5415 | -2/Research | Spotted B-90 Cyclops 5459 | -2/Research | Spotted B-90 Cyclops 5511 | -2/Research | Build established: Hacker-Mutant 5610 | -2/Research | Identified exit to Quarantine 5617 | -2/Research | Core integrity fell below 50% 5638 | -2/Research | Core integrity fell below 20% 5676 | -2/Research | Destroyed by H-88 Terminator with Heavy Machine Gun Last Messages --------------- 05652_ U-05 Engineer builds a Door. 05653_ Penetrated by Slug. 05653_ Slug penetrates R-10 Processor. 05653_ W-44 Eye sends out distress signal. 05654_ Critical hit (Burn: +37). 05654_ Slug penetrates Wall. 05655_ Slammed into W-44 Eye. 05656_ Slammed into G-73 Enforcer. 05656_ Destabilizing: System interference. 05656_ Adv. Signal Interpreter temporarily disabled. 05658_ Slammed into G-73 Enforcer. 05666_ O-16 Technician: "IFF HANDSHAKE FAILED. SECURING TERMINAL." 05675_ ALERT: Hostiles spotted, dispatching reinforcements to Terminal R005. 05676_ Slug penetrates Wall. 05676_ Gravmag Array destroyed. 05676_ Slug penetrates Wall. 05676_ Penetrated by Slug. Map ----- +----------------------------------------------------+ | ?????????????????????????????????????????????????? | | ?????????????????????????????????????????????????? | | ?????????????????????????????????????????????????? | | ?????????????????????????????????????????????????? | | ?????????????????????????????????????????????????? | | ?????????????????????????????????????????????????? | | ?????????????????????????????????????????????????? | | ?????????????????????????????????????????????????? | | ?????????????????????????????????????????????????? | | ?????????????????????????????????????????????????? | | ????????????????????????#+#####??????????????????? | | ???????????????????????? ??????????????????? | | ???????????????????????? ???????????????????? | | ???????????????????????? k ???????????????????? | | ????????????????????????u ???????????????????? | | ????????????????????????# #???????????????????? | | ????????????????????????# k#???????????????????? | | ????????????????????????# #???????????????????? | | ????????????????????????# #???????????????????? | | ????????????????????????# #???????????????????? | | ????????????????????????# #???#######?????????? | | ????????????????????????# k#?? #?????????? | | ????????????????????????# #? #?????????? | | ????????????????????????# R# """ #?????????? | | ????????????????????????# # """ #?????????? | | ????????????????????????#@ h """ #?????????? | | ????????????????????????# # h A u#?????????? | | ????????????????????????# #???????? Ak ?????? | | ????????????????????????# #???????????????????? | | ????????????############# ##??????????????????? | | ????????????# # T#??????????????????? | | ????????????# # #??????????????????? | | ????????????#""" + ##??????????????????? | | ????????????#""" # #???????????????????? | | ????????????#""" # #???????????????????? | | ???#????????# # #???????????????????? | | ???# ???????# !# #???????????????????? | | ???# ???????#/######+#### #???????????????????? | | ???# ######## ###### #### # ?????????????????? | | # / #?????????? | | / #???????????????????? | | # #???????????????????? | | ???# """" " """#????????????????? | | ???#### ### """" "G" """#????????????????? | | ??????# #?#! """" " "gg R"#????????????????? | | #?????# #?# """" """#????????????????? | | #?????# #?# " "" #????????????????? | | #?????# #?# ####????????????????? | | #?????# #?# ??????????????????? | | #?????# #?# ###?????????????????? | +----------------------------------------------------+ Best States ------------- Heat Dissipation 59 Energy Generation 21 Energy Capacity 800 Matter Stores 300 Matter Capacity 300 Sight Range 22 Robot Scan Range 16 Terrain Scan Density 10 Armor Coverage 150 Evasion (%) 62 Targeting Accuracy 8 Recoil Reduction 4 Offensive Hacking 48 Defensive Hacking 20 Trap Extractor Capacity 8 Item Schematics ----------------- Hacking Suite | -8/Materials | Hacked System Shield | -8/Materials | Hacked VTOL Module | -7/Factory | Hacked Imp. Hacking Suite | -6/Factory | Hacked Quantum Capacitor | -6/Factory | Hacked Adv. Trap Extractor | -6/Factory | Hacked Field Propulsion Drive | -6/Factory | Scanalyzed Adv. System Shield | -4/Factory | Hacked Adv. Hacking Suite | -4/Factory | Hacked Q-thruster | -4/Factory | Hacked Robot Schematics ------------------ None Fabricated ------------ Hacking Suite | x1 | -7/Factory Imp. Hacking Suite | x1 | -6/Factory Adv. Trap Extractor | x2 | -6/Factory Imp. Hacking Suite | x1 | -6/Factory Imp. Hacking Suite | x1 | -5/Factory Alien Tech Used ----------------- None Achievements -------------- Safety First Challenges ------------ None Game ------ Seed SalvageShadingDevice Manual? 0 Play Time 01:24:55 Cumulative 251.5 hours Start 2024.06.14 @ 16:01:03 End 2024.06.14 @ 17:29:53 Sessions 1 Manual Loads 0 Difficulty Rogue Special Mode None Game No. 243 Rogue 238 Adventurer 5 Explorer 0 Win Type - Total 4 Types 3/0/0/1/0/0/0/0/0 Lore% 62 Gallery% 81 Achievement% 63 Wizard Run 0 Options --------- Layout 2 ASCII 0 Keyboard 0 Movement Arrows Keybinds 0 Fullscreen 1 Font 24/Terminus Map View 50x44 Zoom Use 0% Tactical HUD 1 Map Filters NONE Filters NONE Steam 1 RUN: faaccd74-fb3e-4361-acfb-0ea71886e1a9